bitfinex-derivatives/quotes_BTCF0:USTF0_20210111
["timestamp","ask_amount","ask_price","bid_price","bid_amount"]
[1610327648098,2.03572827,37552.0,37551.0,0.00027294]
[1610327648500,2.03572827,37552.0,37521.0,0.02443319]
[1610327648701,2.03572827,37552.0,37551.0,0.00027294]
[1610327648901,0.24429608,37555.0,37522.0,0.02443083]
[1610327649099,0.24429608,37555.0,37521.0,1.5]
[1610327649300,0.90394147,37553.0,37551.0,0.00027291]
[1610327649501,0.90394147,37553.0,37522.0,0.02443048]
[1610327649700,0.24429608,37555.0,37552.0,0.00027284]
[1610327649899,0.24429608,37555.0,37522.0,0.07390767]
[1610327649900,0.24429608,37555.0,37553.0,0.13632608]
[1610327650301,0.24429608,37555.0,37554.0,0.00027282]
[1610327652302,0.10797,37555.0,37554.0,0.00027282]
[1610327652502,0.11694,37563.0,37554.0,0.00027282]
[1610327652703,1.01105154,37571.0,37554.0,0.00027282]
[1610327652903,0.10805,37571.0,37554.0,0.00027282]
[1610327653102,0.90297132,37572.0,37554.0,0.00027282]
[1610327653304,0.90290738,37577.0,37554.0,0.00027282]
[1610327653502,0.90290738,37577.0,37554.0,0.02431581]
[1610327653703,0.9029874,37580.0,37554.0,0.02431581]
[1610327653903,0.07714,37581.0,37579.0,0.13632608]
[1610327654107,0.9029318,37582.0,37579.0,0.13632608]
[1610327654306,0.90304385,37584.0,37579.0,0.13497108]
[1610327654504,0.90303018,37585.0,37580.0,0.00027238]
[1610327655005,0.90298699,37587.0,37580.0,0.00027238]
[1610327655806,0.90298699,37587.0,37586.0,0.13632608]
[1610327656208,0.90292697,37589.0,37586.0,0.13632608]
[1610327656410,0.90292697,37589.0,37586.0,0.13659842]
[1610327656612,0.90285695,37591.0,37587.0,0.00027232]
[1610327657010,0.90284768,37592.0,37587.0,0.00027232]
[1610327657611,0.90282307,37591.0,37587.0,0.00027232]
[1610327657810,0.13632608,37588.0,37587.0,0.00027232]
[1610327658010,0.13632608,37588.0,37584.0,0.13632608]
[1610327658210,0.13632608,37588.0,37587.0,0.0002723]
[1610327658411,0.13632608,37588.0,37585.0,0.0002723]
[1610327658711,0.13632608,37588.0,37587.0,0.0002723]
[1610327658910,0.13632608,37588.0,37586.0,0.00027233]
[1610327659312,0.13632608,37588.0,37587.0,0.00027251]
[1610327659712,0.13632608,37588.0,37585.0,0.00027251]
[1610327660112,0.13632608,37588.0,37587.0,0.00027251]
[1610327660312,0.13632608,37588.0,37585.0,0.00027251]
[1610327660512,0.13632608,37588.0,37573.0,3.8427]
[1610327660513,0.13632608,37588.0,37587.0,0.00027251]
[1610327660914,0.13632608,37588.0,37586.0,0.00027253]
[1610327661115,0.13632608,37588.0,37587.0,0.00027253]
[1610327661715,0.13632608,37588.0,37574.0,0.00027255]
[1610327661913,0.13632608,37588.0,37573.0,3.8427]
[1610327661914,0.13632608,37575.0,37573.0,3.8427]
[1610327662113,0.24609608,37575.0,37573.0,3.8427]
[1610327662514,0.24609608,37575.0,37574.0,0.0002726]
[1610327663315,0.10977,37575.0,37574.0,0.0002726]
[1610327663918,0.10977,37575.0,37574.0,0.13659868]
[1610327665919,0.13632608,37585.0,37574.0,0.13659868]
[1610327666520,0.13632608,37585.0,37575.0,0.00027252]
[1610327667120,0.13632608,37585.0,37574.0,0.13632608]
[1610327667320,0.9937853,37591.0,37576.0,0.00027253]
[1610327667520,0.9937853,37591.0,37575.0,0.00027253]
[1610327667721,0.09134,37591.0,37575.0,0.00027253]
[1610327667922,1.01064245,37599.0,37590.0,0.13632608]
[1610327668120,0.10827,37599.0,37590.0,0.13632608]
[1610327668519,0.10827,37599.0,37591.0,0.00027249]
[1610327669921,0.13632608,37592.0,37591.0,0.00027249]
[1610327671122,0.10827,37599.0,37591.0,0.00027249]
[1610327671522,0.90159096,37603.0,37591.0,0.00027249]
[1610327671923,0.13632608,37603.0,37602.0,0.13632608]
[1610327672323,0.13632608,37603.0,37602.0,0.13659857]
[1610327672524,0.13632608,37603.0,37602.0,0.13497197]
[1610327678033,0.13632608,37607.0,37602.0,0.13497197]
[1610327678634,0.13632608,37607.0,37603.0,0.00027244]
[1610327679933,0.13632608,37611.0,37606.0,0.13632608]
[1610327680133,0.08704,37613.0,37606.0,0.13632608]
[1610327680332,4.334,37621.0,37606.0,0.13632608]
[1610327680534,4.334,37621.0,37607.0,0.00027233]
[1610327681334,4.334,37621.0,37607.0,0.02437665]
[1610327681934,4.334,37621.0,37620.0,0.13632608]
[1610327682535,4.334,37621.0,37620.0,0.13659832]
[1610327685441,1.8063832,37639.0,37620.0,0.13659832]
[1610327685837,1.8063832,37639.0,37620.0,0.00027224]
[1610327686039,0.13632608,37626.0,37621.0,0.00027224]
[1610327686238,0.24368608,37626.0,37615.0,0.00027226]
[1610327686441,0.24368608,37626.0,37622.0,0.00027226]
[1610327686840,0.24368608,37626.0,37616.0,0.00027226]
[1610327687039,0.24368608,37626.0,37606.0,3.9096]
[1610327687442,0.24368608,37626.0,37617.0,0.00027231]
[1610327687643,0.24368608,37626.0,37607.0,0.00027231]
[1610327687843,0.24368608,37626.0,37606.0,3.9096]
[1610327688041,0.13632608,37609.0,37608.0,0.00027231]
[1610327688443,0.13632608,37609.0,37607.0,0.00027231]
[1610327688642,0.10736,37626.0,37608.0,0.00027233]
[1610327689243,0.10736,37626.0,37607.0,0.00027233]
[1610327689444,0.10736,37626.0,37609.0,0.00027233]
[1610327689644,0.10736,37626.0,37608.0,0.00027231]
[1610327690047,0.10736,37626.0,37617.0,0.13632608]
[1610327690446,0.10736,37626.0,37618.0,0.00027231]
[1610327690646,0.10736,37626.0,37617.0,0.13632608]
[1610327691247,0.13632608,37632.0,37617.0,0.13632608]
[1610327692049,0.13632608,37632.0,37631.0,0.13632608]
[1610327696253,0.13632608,37632.0,37631.0,0.13659831]
[1610327699959,0.13632608,37632.0,37631.0,0.00027223]
[1610327700359,0.13632608,37632.0,37621.0,0.00027217]
[1610327700561,0.13632608,37632.0,37631.0,0.00027217]
[1610327700761,0.13632608,37632.0,37621.0,0.00027217]
[1610327701161,0.13632608,37632.0,37631.0,0.00027217]
[1610327701361,0.13632608,37632.0,37622.0,0.00027217]
[1610327701562,0.13632608,37632.0,37631.0,0.00027219]
[1610327701762,0.23733608,37632.0,37631.0,0.00027219]
[1610327701961,0.23733608,37632.0,37623.0,0.00027219]
[1610327702161,0.23733608,37632.0,37611.0,4.4006]
[1610327702162,0.23733608,37632.0,37631.0,3e-08]
[1610327702362,0.23733608,37632.0,37624.0,0.00027222]
[1610327702763,0.23733608,37632.0,37612.0,0.00027143]
[1610327702962,0.23733608,37632.0,37625.0,0.00027143]
[1610327703163,0.23733608,37632.0,37611.0,4.4006]
[1610327703164,0.23733608,37632.0,37612.0,0.00027145]
[1610327703461,0.23733608,37632.0,37611.0,4.4006]
[1610327703662,0.23733608,37632.0,37613.0,0.00027147]
[1610327704063,0.13632608,37614.0,37612.0,0.00027147]
[1610327704263,0.13632608,37614.0,37601.0,0.13632608]
[1610327704465,0.13632608,37614.0,37613.0,0.00027147]
[1610327704863,0.13632608,37614.0,37602.0,0.00027147]
[1610327705063,0.13632608,37614.0,37613.0,0.00027147]
[1610327705263,0.13632608,37614.0,37603.0,0.00027147]
[1610327705667,0.13632608,37614.0,37601.0,0.00027147]
[1610327706064,0.13632608,37602.0,37601.0,0.00027147]
[1610327706964,0.13632608,37602.0,37601.0,0.02402464]
[1610327708666,0.13632608,37602.0,37601.0,0.00027147]
[1610327709266,0.13632608,37602.0,37601.0,0.00027151]
[1610327712671,0.22778608,37602.0,37601.0,0.00027151]
[1610327713072,3.32628608,37602.0,37565.0,3.5064]
[1610327713472,3.32628608,37602.0,37581.0,0.02404653]
[1610327713870,3.32628608,37602.0,37578.0,0.08941]
[1610327714070,3.18996,37602.0,37589.0,0.13632608]
[1610327714270,3.18996,37602.0,37590.0,0.02415078]
[1610327716073,3.18996,37602.0,37601.0,0.13632608]
[1610327716474,3.18996,37602.0,37601.0,0.13659797]
[1610327717075,3.18996,37602.0,37601.0,0.00027189]
[1610327717977,3.18996,37602.0,37601.0,0.13632608]
[1610327718177,0.09146,37602.0,37601.0,0.13632608]
[1610327718379,0.13632608,37609.0,37601.0,0.13659795]
[1610327718579,0.13632608,37609.0,37601.0,0.16047252]
[1610327718778,0.13632608,37609.0,37602.0,0.02414663]
[1610327719981,0.13632608,37605.0,37602.0,0.02414663]
[1610327721181,0.13632608,37605.0,37587.0,0.0241476]
[1610327721381,0.13632608,37605.0,37603.0,0.02414909]
[1610327721782,0.13632608,37605.0,37588.0,0.02414999]
[1610327721981,0.10509,37612.0,37604.0,0.0241502]
[1610327722181,0.10509,37612.0,37589.0,0.02415192]
[1610327722382,4.1072,37615.0,37589.0,0.02415192]
[1610327722582,4.1072,37615.0,37586.0,0.20679608]
[1610327722583,4.1072,37615.0,37605.0,0.00027193]
[1610327722783,4.1072,37615.0,37587.0,0.0241529]
[1610327722985,4.1072,37615.0,37606.0,0.00027193]
[1610327723185,3.6975,37615.0,37606.0,0.00027193]
[1610327723385,3.6975,37615.0,37587.0,0.0241529]
[1610327723588,3.6975,37615.0,37607.0,0.00027193]
[1610327723787,3.6975,37615.0,37588.0,0.00027193]
[1610327723987,0.13632608,37601.0,37600.0,0.13632608]
[1610327724588,0.13632608,37601.0,37600.0,0.16047816]
[1610327725488,0.10095,37610.0,37600.0,0.16047816]
[1610327726090,0.10095,37610.0,37609.0,0.13632608]
[1610327726488,0.10095,37610.0,37609.0,0.16047218]
[1610327727689,0.10095,37610.0,37609.0,0.0241461]
[1610327728090,0.10095,37610.0,37599.0,0.13632608]
[1610327728289,0.10095,37610.0,37609.0,0.02414721]
[1610327728691,0.10095,37610.0,37600.0,0.02414933]
[1610327728890,0.10095,37610.0,37609.0,0.0002719]
[1610327729089,0.10095,37610.0,37601.0,0.02414996]
[1610327729289,0.13632608,37613.0,37601.0,0.02414996]
[1610327729490,0.5282,37610.0,37609.0,0.00027191]
[1610327729689,0.5282,37610.0,37586.0,0.07047]
[1610327729690,0.5282,37610.0,37602.0,0.02414981]
[1610327729889,0.5282,37610.0,37609.0,0.00027191]
[1610327730291,0.5282,37610.0,37597.0,0.13632608]
[1610327730489,0.5282,37610.0,37609.0,0.00027191]
[1610327730692,0.5282,37610.0,37598.0,0.02414933]
[1610327730993,0.5282,37610.0,37609.0,0.00027189]
[1610327731195,0.5282,37610.0,37599.0,0.00027189]
[1610327731592,0.5282,37610.0,37598.0,0.02414931]
[1610327731793,0.5282,37610.0,37600.0,0.00027189]
[1610327731992,0.5282,37610.0,37601.0,0.13632608]
[1610327732592,0.5282,37610.0,37602.0,0.02414842]
[1610327734095,0.13632608,37603.0,37602.0,0.02414842]
[1610327734295,0.5282,37610.0,37602.0,0.02414842]
[1610327735597,0.5282,37610.0,37602.0,0.13832842]
[1610327735997,0.5282,37610.0,37603.0,0.02414063]
[1610327736200,0.5282,37610.0,37609.0,0.13632608]
[1610327736799,0.5282,37610.0,37609.0,0.16046408]
[1610327741906,0.13632608,37623.0,37609.0,0.16046408]
[1610327742108,0.13632608,37623.0,37622.0,0.13632608]
[1610327742707,0.13632608,37623.0,37622.0,0.1604859]
[1610327742908,0.13632608,37623.0,37622.0,0.02415982]
[1610327743408,0.13632608,37623.0,37616.0,0.02415942]
[1610327743608,0.13632608,37623.0,37622.0,0.02415958]
[1610327744009,0.13632608,37623.0,37617.0,0.02415998]
[1610327744209,0.13632608,37623.0,37622.0,0.02416023]
[1610327744410,0.13632608,37623.0,37618.0,0.02416031]
[1610327744709,0.13632608,37623.0,37615.0,0.11376]
[1610327744710,0.13632608,37623.0,37622.0,0.02416033]
[1610327744910,0.13632608,37623.0,37619.0,0.02416036]
[1610327745310,0.13632608,37623.0,37622.0,0.02416036]
[1610327745510,0.13632608,37623.0,37620.0,0.02416034]
[1610327745709,0.13632608,37623.0,37622.0,0.02416043]
[1610327746111,0.13632608,37623.0,37621.0,0.02416035]
[1610327746312,0.13632608,37623.0,37622.0,0.02416035]
[1610327746912,0.13632608,37623.0,37618.0,0.02416035]
[1610327747112,0.13632608,37623.0,37622.0,0.024161]
[1610327747312,0.13632608,37623.0,37619.0,0.02416263]
[1610327747713,0.13632608,37623.0,37622.0,2e-08]
[1610327747913,0.13632608,37623.0,37620.0,0.02416432]
[1610327748113,0.13632608,37623.0,37617.0,0.02415619]
[1610327748512,0.13632608,37623.0,37621.0,0.02415623]
[1610327748712,0.13632608,37623.0,37618.0,0.02415728]
[1610327748915,0.13632608,37623.0,37622.0,0.00027187]
[1610327749312,0.13632608,37623.0,37619.0,0.02415945]
[1610327749512,0.13632608,37623.0,37622.0,0.00027189]
[1610327749714,0.13632608,37623.0,37620.0,0.00027189]
[1610327750114,0.13632608,37623.0,37622.0,0.00027189]
[1610327750314,0.13632608,37623.0,37621.0,0.00027189]
[1610327750516,0.13632608,37623.0,37622.0,0.00027189]
[1610327750715,0.13632608,37623.0,37605.0,0.02416039]
[1610327751116,0.13632608,37623.0,37622.0,0.00027189]
[1610327751317,0.13632608,37623.0,37603.0,0.02415988]
[1610327751717,0.13632608,37623.0,37622.0,0.00027189]
[1610327751917,0.13632608,37623.0,37604.0,0.00027189]
[1610327752117,1.129502,37624.0,37607.0,0.13632608]
[1610327752718,1.12953014,37625.0,37608.0,0.02415819]
[1610327753118,1.12948515,37627.0,37608.0,0.02415819]
[1610327754220,1.12953754,37628.0,37612.0,0.13632608]
[1610327754520,1.12953754,37628.0,37613.0,0.02415406]
[1610327755522,0.07544,37629.0,37613.0,0.02415406]
[1610327755921,1.12975321,37631.0,37613.0,0.02415406]
[1610327756122,1.12975321,37631.0,37618.0,0.13632608]
[1610327756722,1.12975321,37631.0,37619.0,0.024153]
[1610327757122,7.29048355,37638.0,37619.0,0.024153]
[1610327757123,1.1298262,37634.0,37619.0,0.024153]
[1610327757925,1.12988641,37637.0,37619.0,0.024153]
[1610327758126,1.12988641,37637.0,37626.0,0.13632608]
[1610327758727,6.8065808,37638.0,37627.0,0.02414806]
[1610327759129,1.12996292,37637.0,37627.0,0.02414806]
[1610327759427,1.21275753,37639.0,37627.0,0.02414806]
[1610327759827,0.22753465,37637.0,37627.0,0.02414806]
[1610327760226,0.08273,37639.0,37633.0,0.13632608]
[1610327760427,1.13000771,37641.0,37633.0,0.13632608]
[1610327760627,1.13000771,37641.0,37634.0,0.02414616]
[1610327762230,0.13632608,37635.0,37634.0,0.02414616]
[1610327762430,0.13632608,37635.0,37629.0,0.02645525]
[1610327762629,0.13632608,37635.0,37634.0,0.02645592]
[1610327763030,0.13632608,37635.0,37630.0,0.02645792]
[1610327763230,0.13632608,37635.0,37634.0,0.02646062]
[1610327763430,0.13632608,37635.0,37631.0,0.0264613]
[1610327763832,0.25241608,37635.0,37621.0,0.02646137]
[1610327764031,0.25241608,37635.0,37632.0,0.02646097]
[1610327764235,1.67301178,37635.0,37622.0,0.02646611]
[1610327764532,2.55070588,37633.0,37620.0,0.02646816]
[1610327764734,1.1301203,37628.0,37623.0,0.00027693]
[1610327764933,1.1301203,37628.0,37623.0,0.02646719]
[1610327765133,1.1301203,37628.0,37621.0,0.02646848]
[1610327765336,1.13018837,37624.0,37620.0,0.02646863]
[1610327765534,2.02833412,37635.0,37620.0,0.00027693]
[1610327765535,1.13025883,37622.0,37620.0,0.00027693]
[1610327765734,1.13025883,37622.0,37619.0,3.3197]
[1610327765936,1.42094507,37622.0,37621.0,0.00027698]
[1610327766135,1.55727115,37622.0,37620.0,0.00027698]
[1610327766335,1.55727115,37622.0,37621.0,0.000277]
[1610327766536,2.68771997,37622.0,37621.0,0.000277]
[1610327766938,2.68771997,37622.0,37619.0,3.3197]
[1610327766939,4.30256755,37622.0,37619.0,3.3197]
[1610327767339,4.30256755,37622.0,37621.0,0.00027701]
[1610327767539,0.13632608,37622.0,37620.0,0.00027701]
[1610327767738,4.30255771,37622.0,37620.0,0.00027701]
[1610327767938,4.30255771,37622.0,37621.0,0.00027701]
[1610327768139,6.07881699,37622.0,37621.0,0.00027701]
[1610327768340,4.94841403,37622.0,37620.0,0.00027701]
[1610327768539,6.07870533,37622.0,37621.0,0.00027701]
[1610327768938,1.91258536,37622.0,37621.0,0.00027701]
[1610327769139,1.91258536,37622.0,37620.0,0.00027703]
[1610327769342,6.07845012,37622.0,37621.0,0.00027703]
[1610327769740,1.91258536,37622.0,37621.0,0.00027703]
[1610327769941,1.91258536,37622.0,37620.0,0.00027703]
[1610327770141,6.07815398,37622.0,37621.0,0.00027703]
[1610327770544,6.07815398,37622.0,37595.0,0.02619355]
[1610327770943,1.13018587,37610.0,37595.0,0.02619355]
[1610327771343,1.13018587,37610.0,37595.0,0.02647055]
[1610327772146,0.13632608,37596.0,37595.0,0.02647055]
[1610327779451,0.73022608,37596.0,37595.0,0.02647055]
[1610327780051,0.73022608,37596.0,37555.0,0.16026476]
[1610327780253,0.5939,37596.0,37595.0,0.02658386]
[1610327780452,0.5939,37596.0,37577.0,0.10252]
[1610327780852,0.5939,37596.0,37595.0,3e-08]
[1610327781052,0.5939,37596.0,37578.0,0.02658757]
[1610327781253,0.67896,37596.0,37571.0,0.02658152]
[1610327781653,0.67896,37596.0,37579.0,0.02658138]
[1610327781855,0.67896,37596.0,37572.0,0.02657996]
[1610327782054,0.67896,37596.0,37580.0,0.02658238]
[1610327782255,0.13632608,37581.0,37580.0,0.02658238]
[1610327782456,0.24949608,37581.0,37573.0,0.02658301]
[1610327782655,0.24949608,37581.0,37559.0,0.13632608]
[1610327782854,0.24949608,37581.0,37574.0,0.02658379]
[1610327783254,0.24949608,37581.0,37560.0,0.02658382]
[1610327783454,0.24949608,37581.0,37575.0,0.02658449]
[1610327783654,0.24949608,37581.0,37561.0,0.0265844]
[1610327784054,0.24949608,37581.0,37576.0,0.02658453]
[1610327784255,0.13632608,37577.0,37562.0,0.02658453]
[1610327784455,0.13632608,37577.0,37557.0,0.02658406]
[1610327784856,0.13632608,37577.0,37563.0,0.02658404]
[1610327785059,0.13632608,37577.0,37558.0,0.02658204]
[1610327785258,0.13632608,37577.0,37564.0,0.02658201]
[1610327785458,0.13632608,37577.0,37559.0,0.02658217]
[1610327785858,0.13632608,37577.0,37565.0,0.02658205]
[1610327786060,0.13632608,37577.0,37560.0,0.0265814]
[1610327786258,0.13632608,37561.0,37556.0,0.1063]
[1610327786858,0.13632608,37561.0,37557.0,0.02658184]
[1610327787663,0.13632608,37561.0,37558.0,0.02658196]
[1610327788261,0.13632608,37561.0,37557.0,0.02658245]
[1610327788461,0.13632608,37561.0,37556.0,0.1063]
[1610327788462,0.13632608,37561.0,37559.0,0.02658635]
[1610327788661,0.13632608,37561.0,37558.0,0.02658651]
[1610327789061,0.13632608,37561.0,37560.0,0.02658758]
[1610327789262,0.13632608,37561.0,37559.0,0.02658744]
[1610327789461,0.13632608,37561.0,37560.0,0.02658733]
[1610327789663,3.94572608,37561.0,37560.0,0.02658733]
[1610327789862,3.94572608,37561.0,37549.0,0.02660577]
[1610327790063,3.94572608,37561.0,37560.0,0.02660587]
[1610327790264,3.94572608,37561.0,37551.0,0.13632608]
[1610327790664,3.94572608,37561.0,37552.0,0.02660684]
[1610327791264,3.94572608,37561.0,37551.0,0.13632608]
[1610327791467,3.94572608,37561.0,37553.0,0.02660598]
[1610327791665,3.94572608,37561.0,37552.0,0.0266069]
[1610327791867,3.94572608,37561.0,37554.0,0.02660681]
[1610327792166,3.94572608,37561.0,37553.0,0.02660783]
[1610327792367,0.13632608,37554.0,37548.0,0.08259]
[1610327792769,0.13632608,37554.0,37553.0,0.02660808]
[1610327792968,0.13632608,37554.0,37549.0,0.02660871]
[1610327793168,0.13632608,37554.0,37553.0,0.02661042]
[1610327793567,0.13632608,37554.0,37541.0,0.02660921]
[1610327793767,0.13632608,37554.0,37553.0,0.02660778]
[1610327793970,0.13632608,37554.0,37553.0,0.02633022]
[1610327794169,0.13632608,37554.0,37542.0,0.02660783]
[1610327794368,0.1058,37554.0,37553.0,0.02661052]
[1610327794569,0.1058,37554.0,37543.0,0.02661063]
[1610327794768,0.1058,37554.0,37553.0,0.02661]
[1610327795170,0.1058,37554.0,37544.0,0.02661016]
[1610327795370,0.1058,37554.0,37553.0,0.02661033]
[1610327795569,0.1058,37554.0,37545.0,0.0266101]
[1610327795969,0.1058,37554.0,37536.0,0.05256917]
[1610327795970,0.1058,37554.0,37553.0,0.02661029]
[1610327796170,0.1058,37554.0,37536.0,0.07918068]
[1610327796371,0.13632608,37537.0,37536.0,0.05256917]
[1610327796773,0.13632608,37537.0,37536.0,0.02661124]
[1610327797473,0.13632608,37537.0,37536.0,0.02661134]
[1610327797672,0.13632608,37537.0,37536.0,0.07919118]
[1610327797874,0.1058,37554.0,37536.0,0.07919118]
[1610327798272,3.5669,37546.0,37544.0,0.13632608]
[1610327798472,0.13632608,37548.0,37544.0,0.13632608]
[1610327798871,0.13632608,37548.0,37545.0,0.0266105]
[1610327800474,0.13632608,37548.0,37536.0,0.13632608]
[1610327800672,0.13632608,37548.0,37546.0,0.02661035]
[1610327800871,0.13632608,37548.0,37537.0,0.02661082]
[1610327801272,0.13632608,37548.0,37547.0,0.02661105]
[1610327801473,0.13632608,37548.0,37536.0,0.13632608]
[1610327801673,0.13632608,37548.0,37537.0,0.02661084]
[1610327802075,0.13632608,37548.0,37530.0,0.02661064]
[1610327802274,0.13632608,37548.0,37538.0,0.02661083]
[1610327802473,0.1058,37554.0,37531.0,0.02661099]
[1610327802673,0.2844,37562.0,37531.0,0.02661099]
[1610327802873,0.2844,37562.0,37539.0,0.02661093]
[1610327803076,0.2844,37562.0,37532.0,0.02661104]
[1610327803273,0.2844,37562.0,37531.0,0.02661126]
[1610327803673,0.2844,37562.0,37533.0,0.02661171]
[1610327803873,0.2844,37562.0,37532.0,0.02661166]
[1610327804075,0.2844,37562.0,37531.0,0.02661163]
[1610327804273,0.2844,37562.0,37533.0,0.02661282]
[1610327804473,0.13632608,37534.0,37533.0,0.02661282]
[1610327804674,0.13632608,37534.0,37532.0,0.02661277]
[1610327804874,0.13632608,37534.0,37533.0,0.02661122]
[1610327805474,0.13632608,37534.0,37531.0,0.02661311]
[1610327805677,0.13632608,37534.0,37533.0,0.02661364]
[1610327805874,0.13632608,37534.0,37532.0,0.02661434]
[1610327806274,0.13632608,37534.0,37492.0,0.1556]
[1610327806275,0.13632608,37534.0,37533.0,0.02661695]
[1610327806675,0.13632608,37534.0,37530.0,0.02661926]
[1610327807076,0.13632608,37534.0,37533.0,0.02661955]
[1610327807278,0.13632608,37534.0,37531.0,0.0266191]
[1610327807478,0.13632608,37534.0,37533.0,0.02634155]
[1610327807675,0.13632608,37534.0,37533.0,0.02661921]
[1610327807875,0.13632608,37534.0,37532.0,0.02661912]
[1610327808076,0.13632608,37534.0,37533.0,0.02661876]
[1610327808277,0.13632608,37534.0,37530.0,0.02661947]
[1610327808675,0.13632608,37534.0,37533.0,0.02661962]
[1610327808875,0.13632608,37534.0,37531.0,0.02662076]
[1610327809076,0.13632608,37534.0,37533.0,0.02662071]
[1610327809476,0.13632608,37534.0,37532.0,0.02662065]
[1610327809677,0.13632608,37534.0,37533.0,0.02662056]
[1610327810178,0.13632608,37534.0,37530.0,0.02662073]
[1610327810378,0.13632608,37534.0,37533.0,0.0266204]
[1610327810781,0.13632608,37534.0,37531.0,0.02662026]
[1610327810979,0.13632608,37534.0,37533.0,0.02662018]
[1610327811180,0.09854,37554.0,37533.0,0.02634252]
[1610327811381,0.5803,37562.0,37532.0,0.02662046]
[1610327811581,0.5803,37562.0,37534.0,0.02662148]
[1610327811780,0.08021,37563.0,37520.0,0.13632608]
[1610327811781,0.08021,37563.0,37533.0,0.02662143]
[1610327811981,0.10922,37572.0,37533.0,0.02662143]
[1610327812181,0.2755,37571.0,37535.0,0.02661486]
[1610327812380,0.2755,37571.0,37494.0,1.5]
[1610327812381,0.37667,37571.0,37564.0,0.13632608]
[1610327812981,0.37667,37571.0,37565.0,0.00027755]
[1610327813383,0.37667,37571.0,37565.0,0.02660514]
[1610327814384,0.37667,37571.0,37568.0,0.13632608]
[1610327814584,0.10117,37571.0,37568.0,0.13632608]
[1610327814785,0.11317,37581.0,37568.0,0.13632608]
[1610327814985,0.2995,37595.0,37569.0,0.02659876]
[1610327816585,0.2995,37595.0,37588.0,0.13632608]
[1610327816986,0.2995,37595.0,37569.0,0.02659876]
[1610327817186,0.38986,37595.0,37589.0,0.00027734]
[1610327817386,0.38986,37595.0,37570.0,0.02658657]
[1610327817586,0.38986,37595.0,37590.0,0.00027734]
[1610327817987,0.38986,37595.0,37563.0,0.02658764]
[1610327818188,0.38986,37595.0,37591.0,3e-08]
[1610327818386,0.38986,37595.0,37563.0,0.02631027]
[1610327818387,0.38986,37595.0,37564.0,0.00027739]
[1610327818589,3.3358,37586.0,37566.0,0.13632608]
[1610327818988,3.3358,37586.0,37567.0,0.0265844]
[1610327820391,3.3358,37586.0,37563.0,0.02659062]
[1610327820590,0.13632608,37568.0,37562.0,0.09741]
[1610327820790,0.13632608,37568.0,37563.0,0.02659263]
[1610327821392,0.13632608,37568.0,37554.0,0.0265981]
[1610327821591,0.13632608,37568.0,37564.0,0.02659918]
[1610327821991,0.13632608,37568.0,37555.0,0.02660416]
[1610327822391,0.13632608,37568.0,37565.0,0.0002776]
[1610327822592,0.13632608,37568.0,37556.0,0.0266068]
[1610327822792,0.13632608,37568.0,37566.0,0.00027165]
[1610327822992,0.13632608,37568.0,37557.0,0.02386961]
[1610327823393,0.13632608,37568.0,37567.0,0.00027168]
[1610327823593,0.13632608,37568.0,37558.0,0.0002717]
[1610327823796,0.13632608,37568.0,37567.0,0.0002717]
[1610327824094,0.13632608,37568.0,37559.0,0.0002717]
[1610327824496,1.12310428,37572.0,37567.0,0.0002717]
[1610327824695,1.12310428,37572.0,37560.0,0.0002717]
[1610327824895,1.12310428,37572.0,37568.0,0.0002717]
[1610327825095,1.12310428,37572.0,37561.0,0.0002717]
[1610327825496,1.12310428,37572.0,37537.0,0.07706]
[1610327825696,1.12310428,37572.0,37562.0,0.00027168]
[1610327825896,1.12310428,37572.0,37543.0,0.02387254]
[1610327826096,0.08222,37575.0,37543.0,0.02387254]
[1610327826097,1.12338542,37574.0,37543.0,0.02387254]
[1610327826299,1.12338542,37574.0,37563.0,0.00027168]
[1610327826499,0.13632608,37564.0,37552.0,0.13632608]
[1610327826698,0.13632608,37564.0,37548.0,0.02359853]
[1610327827098,0.13632608,37564.0,37553.0,0.02387002]
[1610327827299,0.13632608,37564.0,37549.0,0.0238699]
[1610327827499,0.13632608,37564.0,37554.0,0.00027166]
[1610327827902,0.13632608,37564.0,37550.0,0.02387079]
[1610327828100,0.13632608,37564.0,37555.0,0.00027166]
[1610327828300,0.13632608,37564.0,37551.0,0.0238698]
[1610327828500,0.13632608,37552.0,37551.0,0.0238698]
[1610327828701,0.13632608,37552.0,37549.0,0.02359797]
[1610327828904,0.13632608,37552.0,37547.0,3.5145]
[1610327829104,0.13632608,37552.0,37550.0,0.02388833]
[1610327829502,0.13632608,37552.0,37548.0,0.02388827]
[1610327829702,0.13632608,37552.0,37551.0,0.02388825]
[1610327829903,0.13632608,37552.0,37549.0,0.02388757]
[1610327830304,0.13632608,37552.0,37548.0,0.0238878]
[1610327830503,0.13632608,37552.0,37550.0,0.02388784]
[1610327830705,0.13632608,37552.0,37549.0,0.02388081]
[1610327831006,0.13632608,37552.0,37551.0,0.02388089]
[1610327831207,0.13632608,37552.0,37550.0,0.02388071]
[1610327831507,0.13632608,37552.0,37551.0,0.02388091]
[1610327831707,0.13632608,37552.0,37551.0,0.02360925]
[1610327831907,0.13632608,37552.0,37551.0,0.00027167]
[1610327832108,0.13632608,37552.0,37551.0,0.02388204]
[1610327832309,0.13632608,37552.0,37548.0,0.02388204]
[1610327832708,0.13632608,37552.0,37551.0,0.02388202]
[1610327832908,0.13632608,37552.0,37549.0,0.02388222]
[1610327833109,0.13632608,37552.0,37551.0,0.02388196]
[1610327833509,0.13632608,37552.0,37550.0,0.00027167]
[1610327833709,0.13632608,37552.0,37547.0,3.5145]
[1610327833710,0.13632608,37552.0,37551.0,0.00027169]
[1610327833909,0.13632608,37552.0,37551.0,0.0002717]
[1610327834114,0.13632608,37552.0,37551.0,1e-08]
[1610327834311,0.13632608,37552.0,37548.0,0.0002719]
[1610327834510,0.13632608,37552.0,37551.0,0.00027188]
[1610327834710,0.13632608,37552.0,37548.0,0.00027188]
[1610327835010,0.13632608,37552.0,37551.0,0.00027188]
[1610327835210,0.13632608,37552.0,37549.0,0.00027188]
[1610327835611,0.13632608,37552.0,37548.0,0.00027188]
[1610327835810,0.13632608,37552.0,37550.0,0.0002719]
[1610327836011,0.13632608,37552.0,37548.0,0.0002719]
[1610327836413,0.13632608,37552.0,37551.0,0.0002719]
[1610327836614,0.13632608,37552.0,37549.0,0.0002719]
[1610327836811,0.13632608,37552.0,37530.0,0.02393607]
[1610327837212,0.13632608,37552.0,37550.0,0.0002719]
[1610327837413,0.13632608,37552.0,37531.0,0.0002719]
[1610327837613,0.13632608,37552.0,37530.0,0.02393605]
[1610327837813,0.13632608,37552.0,37532.0,0.00027188]
[1610327838214,0.13632608,37552.0,37531.0,0.00027188]
[1610327838413,0.13632608,37552.0,37533.0,0.00027185]
[1610327838613,0.13632608,37543.0,37535.0,0.13632608]
[1610327839215,0.13632608,37543.0,37536.0,0.0239291]
[1610327840615,0.13632608,37537.0,37530.0,0.02392981]
[1610327840813,0.13632608,37537.0,37477.0,0.40814853]